Cogmind - Beta 14 @@@ ROGUE MODE // 2024.08.08 @ 21:09:19 Player: Cart123 Result: Self-destructed Performance ------------- Evolutions (2) 1000 Regions Visited (5) 1000 Robots Destroyed (27) 135 Value Destroyed (711) 711 Prototype IDs (1) 20 Alien Tech Used (0) 0 Bonus (0) 0 TOTAL SCORE: 2866 Bonus ------- None Cogmind --------- Core Integrity 101/550 Matter 142/300 Energy 0/100 System Corruption 2% Temperature Cool (0) Movement Walking (120) Location -8/Materials Parts ------- > --- POWER (1) -------- (None) > --- PROPULSION (3) --- Aluminum Leg Aluminum Leg > --- UTILITY (5) ------ ECM Suite Light Armor Plating > --- WEAPON (2) ------- Gauss Cannon Gauss Cannon > --- INVENTORY (5) ---- Gauss Cannon Welding Torch Peak State ------------ > --- POWER ------------ Light Ion Engine > --- PROPULSION ------- Aluminum Leg Aluminum Leg Improved Aluminum Leg > --- UTILITY ---------- Small Storage Unit Experimental Sensor Array Signal Interpreter Tractor Beam > --- WEAPON ----------- Light Assault Rifle Light Assault Rifle > --- INVENTORY -------- Small Storage Unit Datajack Welding Torch Ripper [Rating: 19] Favorites ----------- Power Light Ion Engine Engine Light Ion Engine Propulsion Aluminum Leg Leg Aluminum Leg Hover Unit Backup Propulsion I Utility Small Storage Unit Device ECM Suite Storage Small Storage Unit Processor Signal Interpreter Protection Light Armor Plating Weapon Gauss Cannon Energy Gun Small Laser Ballistic Gun Light Assault Rifle Ballistic Cannon Gauss Cannon Special Weapon Welding Torch Slashing Weapon Ripper Build | -11 -10 -10 -10 -9 -8 ------- Run | Yrd Mat Min Exi Min Mat Slots Evolved 4 | . . . . . 4 Power . | . . . . . . Propulsion 1 | . . . . . 1 Utility 3 | . . . . . 3 Weapon . | . . . . . . Parts Attached 41 | 6 7 1 . 9 18 Power 4 | 1 1 . . 1 1 Engine 4 | 1 1 . . 1 1 Core . | . . . . . . Reactor . | . . . . . . Propulsion 11 | 2 1 . . 3 5 Treads . | . . . . . . Leg 11 | 2 1 . . 3 5 Wheel . | . . . . . . Hover . | . . . . . . Flight . | . . . . . . Utility 10 | 1 2 . . 1 6 Device 4 | . 1 . . . 3 Storage 4 | 1 1 . . . 2 Processor 1 | . . . . 1 . Hackware . | . . . . . . Protection 1 | . . . . . 1 Artifact . | . . . . . . Weapon 16 | 2 3 1 . 4 6 Energy Gun 1 | 1 . . . . . Energy Cannon . | . . . . . . Ballistic Gun 7 | 1 2 1 . 3 . Ballistic Cannon 5 | . . . . . 5 Launcher . | . . . . . . Special Weapon 1 | . 1 . . . . Impact Weapon . | . . . . . . Slashing Weapon 2 | . . . . 1 1 Piercing Weapon . | . . . . . . Special Melee Weapon . | . . . . . . Unidentified Prototypes 1 | . . . . . 1 Parts Lost 14 | . . . . 5 9 Power 3 | . . . . 1 2 Propulsion 5 | . . . . 2 3 Utility 3 | . . . . 1 2 Weapon 3 | . . . . 1 2 Highest Loss Streak 6 | . . . . 3 6 To Critical Strikes . | . . . . . . Average Slot Usage (%) 69 | . 92 100 100 85 56 Engine 3 | . 13 14 14 2 1 Leg 21 | . 27 28 28 26 17 Device 6 | . 8 14 14 . 7 Storage 6 | . 14 14 14 14 2 Processor 3 | . . . . 13 2 Protection 4 | . . . . . 6 Ballistic Gun 9 | . 17 21 28 27 . Ballistic Cannon 10 | . . . . . 16 Peak Build Rating 19 | 6 7 7 7 10 19 Average Rating 9 | 3 6 7 7 6 12 On Entrance 6 | . 6 7 7 7 9 Naked Turns 7 | . . . . . 7 Heaviest Build 23 | 11 12 12 12 10 23 Greatest Support 33 | 20 20 20 20 23 33 Greatest Overweight (x) 3 | 2 . . . 2 3 Average Overweight (x) . | . . . . . . Largest Inventory Capacity 8 | 8 8 8 8 8 8 Average Capacity 6 | 7 8 8 8 8 5 Most Carried 8 | 5 8 6 6 7 8 Average Carried 4 | 3 5 6 6 5 3 Final Capacity 8 | 8 8 8 8 8 5 Final Carried 7 | 2 6 6 6 7 2 Class Distribution -------------------- 89% | Mutant 10% | Scavenger-Mutant Dominant Class ---------------- Mutant | -10/Materials Mutant | -10/Mines Mutant | -10/Exiles Mutant | -9/Mines Mutant | -8/Materials Resources | -11 -10 -10 -10 -9 -8 ----------- Run | Yrd Mat Min Exi Min Mat Matter Collected 952 | 197 129 22 . 169 435 Remotely 98 | . . . . . 98 Salvage Created 715 | . 43 111 . 182 379 Parts 45 | . 8 3 . 14 20 Haulers Intercepted . | . . . . . . Recyclers Shooed . | . . . . . . Parts Field Recycled . | . . . . . . Retrieved Matter . | . . . . . . Parts Self-Destructed . | . . . . . . Prevented . | . . . . . . Kills | -11 -10 -10 -10 -9 -8 ------- Run | Yrd Mat Min Exi Min Mat Combat Hostiles Destroyed 20 | . . . . 8 12 Melee 2 | . . . . . 2 Guns 8 | . . . . 8 . Cannons 10 | . . . . . 10 Classes Destroyed 9 | . 3 1 . 2 3 Builder 2 | . 1 . . . 1 Recycler 1 | . . . . . 1 Carrier 1 | . . 1 . . . Operator 1 | . 1 . . . . Watcher 2 | . 1 . . . 1 Swarmer 9 | . . . . 5 4 Grunt 9 | . . . . 3 6 Brawler 1 | . . . . . 1 Sentry 1 | . . . . . 1 Best Kill Streak 6 | . 1 1 . 2 6 Combat Bots Only 5 | . . . . 2 5 Max Kills in Single Turn 2 | . 1 1 . 1 2 Gunslinging . | . . . . . . Exploded . | . . . . . . Melee 1 | . . . . . 1 Uniques/NPCs Destroyed . | . . . . . . Combat | -11 -10 -10 -10 -9 -8 -------- Run | Yrd Mat Min Exi Min Mat Hostile Shots Fired 214 | . . 7 . 65 142 Missed 51 | . . 2 . 11 38 Damage Taken 2141 | . . 211 . 526 1404 Core 613 | . . 37 . 127 449 Absorbed by Shields . | . . . . . . Regen/Repaired (Parts) 42 | . . . . . 42 Core Remaining (%) 67 | 100 . . . 34 . Volleys Fired 88 | . 11 2 1 35 39 Largest 2 | . 2 2 2 2 2 Hottest 96 | . 60 40 40 40 96 Shots Fired 165 | . 16 4 2 69 74 Gun 86 | . 11 4 2 69 . Cannon 74 | . . . . . 74 Launcher . | . . . . . . Special 5 | . 5 . . . . Kinetic 158 | . 9 4 2 69 74 Thermal 7 | . 7 . . . . Explosive . | . . . . . . Electromagnetic . | . . . . . . Robot Hit Streak 5 | . 1 3 . 5 5 Robot Miss Streak 7 | . 2 1 . 7 4 Penetration Max 1 | . . . . . 1 Secondary Targets 2 | . . 1 . 1 . Max Gunslinging Chain 1 | . . 1 . 1 . Shots Hit Robots 86 | . 4 3 . 30 49 Core Hits 45 | . 3 3 . 16 23 Critical Kills 1 | . . 1 . . . Critical Parts Destroyed . | . . . . . . Critical Strikes 8 | . . 1 . . 7 Destroy 1 | . . 1 . . . Blast 6 | . . . . . 6 Sever 1 | . . . . . 1 Melee Attacks 12 | . . . . . 12 Impact . | . . . . . . Slashing 12 | . . . . . 12 Piercing . | . . . . . . Sneak Attacks 1 | . . . . . 1 Combat Hostiles . | . . . . . . Follow-up Attacks . | . . . . . . Damage Inflicted 1896 | . 51 39 . 282 1524 Guns 367 | . 51 39 . 277 . Cannons 1164 | . . . . . 1164 Explosions . | . . . . . . Melee 340 | . . . . . 340 Ramming 25 | . . . . 5 20 Kinetic 1531 | . 51 39 . 277 1164 Thermal . | . . . . . . Explosive . | . . . . . . Electromagnetic . | . . . . . . Impact . | . . . . . . Slashing 340 | . . . . . 340 Piercing . | . . . . . . Highest Corruption 2 | . . . . . 2 Average Corruption 2 | . . . . . 2 Corruption Purged . | . . . . . . Corruption Blocked . | . . . . . . Effects 14 | . . . . . 14 Message Errors 5 | . . . . . 5 Matter Fused 3 | . . . . . 3 Heat Flow Errors 3 | . . . . . 3 Data Loss (minor) 1 | . . . . . 1 Data Loss (major) 2 | . . . . . 2 Overload Shots . | . . . . . . Overflow Damage 50 | . . . . . 50 Projectiles 50 | . . . . . 50 Explosions . | . . . . . . Melee . | . . . . . . Knockbacks 14 | . . . . . 14 Impact . | . . . . . . Kinetic 12 | . . . . . 12 Secondary 2 | . . . . . 2 Self-Inflicted Damage 7 | . . . . . 7 Shots . | . . . . . . Rammed 5 | . . . . . 5 Targets Rammed 13 | . . . . 5 8 Kicked 8 | . . . . 5 3 Crushed . | . . . . . . Highest Temperature 333 | . . . . 9 333 Average Temperature 105 | . . . . 3 115 Received Heat Transfer 762 | . . . . 159 603 Effects 2 | . . . . . 2 Energy Bleed 1 | . . . . . 1 Interference 1 | . . . . . 1 Siege Activations . | . . . . . . Robots Corrupted . | . . . . . . Combat Hostiles . | . . . . . . Parts Fried . | . . . . . . Impact Corruptions . | . . . . . . Robots Melted . | . . . . . . Combat Hostiles . | . . . . . . Parts Melted . | . . . . . . Heat Transferred . | . . . . . . Parts Sabotaged . | . . . . . . Parts Stolen . | . . . . . . Parts Stripped . | . . . . . . Power Chain Reactions . | . . . . . . Alert | -11 -10 -10 -10 -9 -8 ------- Run | Yrd Mat Min Exi Min Mat Peak Influence 369 | . 32 42 . 225 369 Initial 17 | . . 12 . . 17 Average 86 | . 12 27 . 76 115 Maximum Alert Level 1 | . . . . 1 1 Low Security (%) 77 | 100 100 100 . 94 64 Level 1 22 | . . . . 5 35 Level 2 . | . . . . . . Level 3 . | . . . . . . Level 4 . | . . . . . . Level 5 . | . . . . . . High Security . | . . . . . . Max Security . | . . . . . . Squads Dispatched 3 | . 1 . . . 2 Investigation . | . . . . . . Extermination . | . . . . . . Reinforcement 3 | . 1 . . . 2 Assault . | . . . . . . Garrison . | . . . . . . Intercept . | . . . . . . Searches Triggered . | . . . . . . Construction Impeded 1 | . . . . . 1 Haulers Reinforced . | . . . . . . Active Scanning Responses . | . . . . . . Cargo Convoy Interrupts . | . . . . . . Stealth | -11 -10 -10 -10 -9 -8 --------- Run | Yrd Mat Min Exi Min Mat Distress Signals 3 | . 2 . . . 1 Communications Jammed . | . . . . . . Distress Signals . | . . . . . . Times Spotted 36 | . 2 5 . 13 16 Peak Tracking Total 10 | . 2 5 . 6 10 Tactical Retreats 5 | . . 1 . 2 2 Traps | -11 -10 -10 -10 -9 -8 ------- Run | Yrd Mat Min Exi Min Mat Traps Triggered 1 | . 1 . . . . Indirectly . | . . . . . . Trap Hack Attempts . | . . . . . . Triggered . | . . . . . . Disarmed . | . . . . . . Reprogrammed . | . . . . . . Reused . | . . . . . . Traps Extracted . | . . . . . . Installed . | . . . . . . Triggered . | . . . . . . Machines | -11 -10 -10 -10 -9 -8 ---------- Run | Yrd Mat Min Exi Min Mat Machines Disabled 4 | . 1 . . 1 2 Max in Single Turn 1 | . 1 . . 1 1 Machines Repaired . | . . . . . . Machines Dismantled . | . . . . . . Machines Sabotaged . | . . . . . . Overloaded Fab Kills . | . . . . . . Hacking | -11 -10 -10 -10 -9 -8 --------- Run | Yrd Mat Min Exi Min Mat Machines Accessed 1 | . . . . . 1 Terminals . | . . . . . . Fabricators . | . . . . . . Repair Stations 1 | . . . . . 1 Recycling Units . | . . . . . . Scanalyzers . | . . . . . . Garrison Access . | . . . . . . Total Hacks 7 | . . . . . 7 Successful 5 | . . . . . 5 Failed 2 | . . . . . 2 Catastrophic . | . . . . . . Database Lockouts . | . . . . . . Manual . | . . . . . . Terminals . | . . . . . . Fabricators . | . . . . . . Repair Stations 7 | . . . . . 7 Recycling Units . | . . . . . . Scanalyzers . | . . . . . . Garrison Access . | . . . . . . Terminal Hacks . | . . . . . . Fabricator Hacks . | . . . . . . Repair Station Hacks 5 | . . . . . 5 Scan Component 2 | . . . . . 2 Repair 2 | . . . . . 2 Refit 1 | . . . . . 1 Recycling Unit Hacks . | . . . . . . Scanalyzer . | . . . . . . Garrison Access Hacks . | . . . . . . Unauthorized Hacks . | . . . . . . Terminals . | . . . . . . Fabricators . | . . . . . . Repair Stations . | . . . . . . Recycling Units . | . . . . . . Scanalyzers . | . . . . . . Garrison Access . | . . . . . . Data Cores Recovered . | . . . . . . Used . | . . . . . . Hacking Detections . | . . . . . . Full Trace Events . | . . . . . . Feedback Events . | . . . . . . Feedback Blocked . | . . . . . . Robot Schematics Acquired . | . . . . . . Robots Built . | . . . . . . Authchips . | . . . . . . Time . | . . . . . . Total Robot Build Rating . | . . . . . . Part Schematics Acquired . | . . . . . . Parts Built . | . . . . . . Authchips . | . . . . . . Time . | . . . . . . Total Part Build Rating . | . . . . . . Parts Repaired 2 | . . . . . 2 Time 58 | . . . . . 58 Parts Recycled . | . . . . . . Recycled Matter . | . . . . . . Retrieved Matter . | . . . . . . Retrieved Components . | . . . . . . Parts Scanalyzed . | . . . . . . Part Schematics Acquired . | . . . . . . Parts Damaged . | . . . . . . Bothacking | -11 -10 -10 -10 -9 -8 ------------ Run | Yrd Mat Min Exi Min Mat Used RIF Installer . | . . . . . . Robots Hacked . | . . . . . . Non-combat . | . . . . . . Combat . | . . . . . . Robot Hacks Applied . | . . . . . . Relay Couplers Released . | . . . . . . Fabnet Peak Effective % . | . . . . . . Robots Rewired . | . . . . . . Allies Hacked . | . . . . . . Hacks Repelled . | . . . . . . Allies | -11 -10 -10 -10 -9 -8 -------- Run | Yrd Mat Min Exi Min Mat Total Allies . | . . . . . . Largest Group . | . . . . . . Highest-Rated Group . | . . . . . . Highest-Rated Ally . | . . . . . . Total Orders . | . . . . . . Ally Attacks . | . . . . . . Total Damage . | . . . . . . Kills . | . . . . . . Allies Corrupted . | . . . . . . Allies Melted . | . . . . . . Intel | -11 -10 -10 -10 -9 -8 ------- Run | Yrd Mat Min Exi Min Mat Robot Analysis Total . | . . . . . . Derelict Logs Recovered 2 | . . . . 2 . Drone Launches . | . . . . . . Drone Recoveries . | . . . . . . Exploration | -11 -10 -10 -10 -9 -8 ------------- Run | Yrd Mat Min Exi Min Mat Turns Passed 2866 | 120 321 136 85 539 1665 Spaces Moved 1010 | 89 208 107 69 350 187 Core 58 | 48 . . . 8 2 Treads . | . . . . . . Legs 949 | 41 208 107 69 342 182 Wheels . | . . . . . . Hover 3 | . . . . . 3 Flight . | . . . . . . Fastest Speed 50 | 50 120 120 120 120 50 Average Speed 126 | 120 120 120 120 120 153 Slowest Speed 330 | 150 120 120 120 150 330 Overloaded Moves . | . . . . . . Propulsion Burnouts . | . . . . . . Robots Hopped . | . . . . . . Cave-ins Triggered . | . . . . . . Exploration Rate (%) 25 | 6 32 28 9 65 15 Regions Visited 5 Branch Regions 3 Pre-discovered Areas . | . . . . . . Known Exits Taken 1 | . . . . 1 . Unknown Exits Taken 4 | 1 1 1 1 . . Scrap Searched 1 | . . . . 1 . Spaces Dug 1 | . . . . . 1 Terrain Destroyed 35 | . . . . . 35 Melee 1 | . . . . . 1 Projectile 34 | . . . . . 34 AOE . | . . . . . . Terrain Rammed . | . . . . . . Walls Destroyed . | . . . . . . Machines Disabled . | . . . . . . Actions | -11 -10 -10 -10 -9 -8 --------- Run | Yrd Mat Min Exi Min Mat Total 2419 | 101 263 110 69 406 1470 Wait 1215 | . 26 1 . . 1188 Move 1005 | 88 207 106 68 349 187 Hop . | . . . . . . Pick Up 32 | 7 9 . . 7 9 Fast Attach 5 | 1 1 . . . 3 Attach 27 | 5 4 . . 5 13 Detach 3 | . 1 . . . 2 Swap 9 | . 2 1 . 4 2 Drop 10 | . 2 . . 1 7 Fire 88 | . 11 2 1 35 39 Melee 12 | . . . . . 12 Ram 5 | . . . . . 5 Kick 8 | . . . . 5 3 Crush . | . . . . . . Escape Stasis . | . . . . . . Rewire . | . . . . . . Trap . | . . . . . . Miscellaneous . | . . . . . . Route ------- -11/Scrapyard -10/Materials -10/Mines -10/Exiles -9/Mines -8/Materials (discovered 1 exit: Fac) History --------- Turn | Location | Event 5 | -11/Scrapyard | Discovered new exit (range 15) 121 | -11/Scrapyard | Entered Materials 280 | -10/Materials | Discovered new exit (range 13) 307 | -10/Materials | Build established: Mutant 442 | -10/Materials | Entered Mines 461 | -10/Mines | Met a Derelict bent on vengeance 476 | -10/Mines | Assembled infested the area 481 | -10/Mines | Assisted by a Guerilla fighting off Assembled 569 | -10/Mines | Deemed a non-threat by the Exiles lab entrance 571 | -10/Mines | Discovered new exit (range 5) 578 | -10/Mines | Entered Exiles 598 | -10/Exiles | Discovered new exit (range 15) 663 | -10/Exiles | Entered Mines 766 | -9/Mines | Core integrity fell below 50% 800 | -9/Mines | Lost 3 parts (2n1w) 851 | -9/Mines | Identified exit to Materials 942 | -9/Mines | A weapon hastily lodged in a ceiling crevice suddenly fell to the ground 1062 | -9/Mines | Learned 2 Materials zone layouts 1156 | -9/Mines | Found a damaged Exp. Sensor Array with a note attached 1158 | -9/Mines | Found Prototype Device 1202 | -9/Mines | Entered Materials 1202 | -8/Materials | Evolved 4 slots: Propulsion x1, Utility x3 1203 | -8/Materials | Identified exit to Factory 1206 | -8/Materials | Identified Exp. Sensor Array 1314 | -8/Materials | Repaired Imp. Aluminum Leg 1340 | -8/Materials | Repaired Aluminum Leg? 1581 | -8/Materials | Core integrity fell below 50% 1627 | -8/Materials | Lost 6 parts (2n2u2w) 1641 | -8/Materials | Core integrity fell below 20% 2867 | -8/Materials | Self-destructed Last Messages --------------- K-01 Serf collects debris. System corrupted: Heat flow error (+274). System corrupted: Matter fused (-6). K-01 Serf collects debris. 4EOGU81#SG> E4L7N22/||QLP4SD1:ZOSR/ System corrupted: Matter fused (-5). System corrupted: Substantial component data lost. H1> <30OGGY%8QQXIPXQH4UX|QIS8LSN3< System corrupted: Heat flow error (+139). FN=KJ7YRWRPBHFB6|7BW 0Y MGGT: System corrupted: Heat flow error (+168). Dropped Datajack. RBDSK9XT:YU|FBWZ C /H>V7DOBY Map ----- +----------------------------------------------------+ | | | | | | | | | ?????????????????????????????????????????????????? | | ?????????????????????????????????????????????????? | | ?????????????????????????????????????????????????? | | ?????????????????????????????????????????????????? | | ?????????????????????????????????????????????????? | | ?????????????????????????????????????????????????? | | ?????????????????????????????????????????????????? | | ?????????????????????????????????????????????????? | | ?????????????????????????????????????????????????? | | ????????????????####?????????????????????????????? | | ???????????????? #????"""??????????????????????? | | ???????????????? +????"""??????????????????????? | | ???????????????? #????"""??????????????????????? | | ???????????????? #???? ??????????????????????? | | ???????????????? #???? ???????????????###????? | | ???????????????? #???? ?????????????### #####? | | ###+############ #????#+#?????????????# #? | | #????# #?????????????# ## | | #????# #?????????????# # | | #???## #?###########?# """ # | | ## ###+######+######### #?# #?# """ # | | ?# #! ?# """ ## #@### """ #?# """ + | | #" # """ #""" "" #### ### """ #?# # | | ## # """ #"R= =+ ### """ #?# ""# | | ?# # """ #"" #### ### """ #?# T"# | | ?# # # [ #### ### """ ! #?# ""# | | ?# # # #?## ### !! #?# # | | ?# ######## #### ###! % #?######### | | ?# #?????#####"###### |###+#######??######## | | ?# #???????# ???#% = % ##?# # | | ?# #???????# ??# % #??# # | | ?# #???????# ]] [###% % %%% % #??# # | | ?# #???????# ][ ### ####### #??# # | | ?# #???????# ][ !#########????#? #??# # | | ??% ????????# #?????????????? #??# # | | ?????????????####+###?????????????? #######/### | | ????????????????? ???????????????? | | ????????????????? ???????????????? | | ????????????????? ???????????????? | | ?????????????????##????????????????############### | | ???????????????????????????????????#??????????# | | ???????????????????????????????????#??????????# | | ???????????????????????????????????#??????????# | | ???????????????????????????????????#??????????# | | ???????????????????????????????????#??????????# | | ???????????????????????????????????#??????????# | +----------------------------------------------------+ Best States ------------- Heat Dissipation 31 Energy Generation 10 Energy Capacity 125 Matter Stores 300 Matter Capacity 300 Sight Range 16 Terrain Scan Range 14 Terrain Scan Density 10 ECM Strength 1 Armor Coverage 150 Evasion (%) 55 Item Schematics ----------------- None Robot Schematics ------------------ None Fabricated ------------ Nothing Alien Tech Used ----------------- None Achievements -------------- I Survived The Infestation Oops Part-time Mechanic Please Form A Line Preemptive Strike Risk Taker Challenges ------------ None Game ------ Seed GyrokineticLinkedAnalyzer Manual? 0 Play Time 00:30:57 Cumulative 2.0 hours Start 2024.08.08 @ 20:39:53 End 2024.08.08 @ 21:09:19 Sessions 1 Manual Loads 0 Difficulty Rogue Special Mode None Game No. 3 Rogue 3 Adventurer 0 Explorer 0 Win Type - Total 0 Types 0/0/0/0/0/0/0/0/0 Lore% 0 Gallery% 4 Achievement% 6 Wizard Run 0 Options --------- Layout 1 ASCII 0 Keyboard 0 Movement Arrows Keybinds 0 Fullscreen 2 Font 24/Smallcaps Map View 25x17 Zoom Use 100% Tactical HUD 0 Map Filters NONE Filters NONE Steam 1 RUN: cdac4640-0328-480d-89df-bea5f4fbe1c5